bitfinex/quotes_ETHUSD_20260130
["timestamp","ask_amount","ask_price","bid_price","bid_amount"]
[1769739149994,0.01110411,2734.2,2733.4,0.002]
[1769739150193,0.766,2734.1,2733.4,13.22168579]
[1769739150506,1.68038907,2734.1,2733.4,14.13629495]
[1769739150670,0.766,2734.1,2733.5,1.4136295]
[1769739150868,0.01110411,2734.0,2733.4,0.002]
[1769739151074,0.01110411,2733.8,2733.4,0.002]
[1769739151714,0.01110411,2733.8,2733.1,0.002]
[1769739152073,0.01110411,2733.6,2733.1,0.002]
[1769739152713,0.01110411,2733.8,2733.1,14.63533213]
[1769739152927,0.766,2733.7,2733.1,14.63533213]
[1769739153479,0.001,2734.2,2733.1,14.63533213]
[1769739153724,0.9153658,2734.2,2733.1,14.63533213]
[1769739153890,0.01110411,2734.0,2733.1,1.41564634]
[1769739154096,0.01110411,2733.6,2732.7,0.91482427]
[1769739154489,0.91457837,2733.5,2732.6,14.13454145]
[1769739155430,0.86457837,2733.5,2732.6,14.13454145]
[1769739155787,0.91456977,2733.6,2732.6,14.13454145]
[1769739155986,0.91446315,2733.9,2732.7,14.84356226]
[1769739156216,0.766,2733.8,2732.7,14.84356226]
[1769739156398,0.766,2733.7,2732.7,14.84356226]
[1769739156717,0.766,2733.7,2732.9,13.06414508]
[1769739157226,1.68051605,2733.7,2732.9,13.06414508]
[1769739157425,0.01110411,2733.6,2732.9,1.59308347]
[1769739157584,0.01110411,2733.6,2732.4,1.31213915]
[1769739157790,0.01110411,2733.2,2732.4,1.31213915]
[1769739157997,0.01110411,2733.4,2732.4,14.37628423]
[1769739158289,0.766,2733.3,2732.7,13.9789792]
[1769739158486,3.65782332,2733.9,2732.7,13.9789792]
[1769739158686,0.766,2733.8,2732.7,13.9789792]
[1769739159326,0.91439549,2734.1,2732.7,13.9789792]
[1769739159516,0.766,2733.7,2732.9,13.06414508]
[1769739161132,1.68052695,2733.7,2732.9,13.97892063]
[1769739162294,1.68052695,2733.7,2732.9,13.97891908]
[1769739162499,0.766,2733.7,2733.0,1.43762842]
[1769739162695,0.766,2733.7,2733.0,14.5017735]
[1769739163228,0.001,2734.2,2733.1,13.06614508]
[1769739163401,0.767,2734.1,2733.3,13.06414508]
[1769739164229,0.001,2734.2,2733.3,13.06414508]
[1769739164432,0.767,2734.1,2733.3,13.06414508]
[1769739165010,0.91404336,2735.1,2733.5,13.97872345]
[1769739165204,0.767,2735.0,2733.5,13.97872345]
[1769739165404,0.77810411,2735.0,2733.5,13.97872345]
[1769739166298,0.01110411,2735.0,2733.5,13.97872345]
[1769739166501,0.766,2734.9,2733.5,13.97872345]
[1769739166702,0.766,2734.9,2733.7,13.06414508]
[1769739167599,0.766,2734.8,2733.9,13.06414508]
[1769739167800,0.9139097,2735.5,2733.9,13.06414508]
[1769739168004,3.65379684,2736.9,2733.8,0.91447801]
[1769739168005,0.30783681,2736.2,2735.3,13.06414508]
[1769739168219,0.57524609,2736.1,2735.3,13.06211495]
[1769739168457,0.766,2736.0,2735.3,13.06211495]
[1769739168616,0.766,2736.0,2735.5,13.06414508]
[1769739169659,0.766,2736.0,2735.1,0.91403834]
[1769739169660,1.67975066,2736.0,2735.1,0.91403834]
[1769739169822,0.01110411,2735.9,2735.0,13.06414508]
[1769739170150,0.01110411,2735.9,2735.2,0.91400806]
[1769739170358,0.01110411,2735.5,2734.0,13.06414508]
[1769739170524,0.01110411,2735.1,2734.0,13.97853816]
[1769739171886,0.01110411,2734.9,2734.0,13.06414508]
[1769739172157,0.01110411,2734.9,2734.1,1.44358093]
[1769739173454,0.01110411,2734.9,2733.9,0.45723901]
[1769739173638,0.01110411,2734.6,2733.6,0.9145379]
[1769739173832,3.65585975,2735.4,2733.7,13.06414508]
[1769739174036,0.766,2735.3,2733.7,13.06414508]
[1769739174354,0.01110411,2735.2,2733.9,13.06414508]
[1769739174669,0.01110411,2734.5,2733.5,0.91455614]
[1769739175247,0.01110411,2734.8,2733.5,13.97870122]
[1769739175464,0.766,2734.7,2734.2,0.002]
[1769739175852,0.766,2734.7,2734.0,0.002]
[1769739175853,0.92531459,2734.6,2734.0,0.002]
[1769739176070,1.46124065,2734.6,2734.0,0.002]
[1769739176726,1.46124065,2734.6,2733.1,0.002]
[1769739176727,0.01110411,2734.4,2733.1,0.002]
[1769739176933,0.01110411,2733.8,2733.1,0.002]
[1769739177356,1.46124065,2734.6,2733.1,0.002]
[1769739177357,0.766,2733.7,2733.1,0.002]
[1769739177868,1.68054335,2733.7,2733.1,0.002]
[1769739178781,2.21550106,2733.7,2733.1,0.002]
[1769739178943,0.01110411,2733.3,2732.4,1.31213915]
[1769739179384,0.01110411,2733.3,2731.9,12.92187889]
[1769739179385,0.01110411,2733.1,2731.9,13.83698613]
[1769739179669,0.01110411,2733.1,2732.1,1.38589861]
[1769739180039,0.9147457,2733.0,2732.1,1.38589861]
[1769739180240,0.91467876,2733.2,2732.1,15.22082226]
[1769739180452,0.766,2733.1,2732.1,15.22082226]
[1769739180653,0.766,2733.1,2732.3,12.91987889]
[1769739181367,0.766,2733.0,2732.3,12.91987889]
[1769739182263,0.91477917,2732.9,2732.3,12.91987889]
[1769739182841,0.91477917,2732.9,2732.1,0.002]
[1769739184681,3.76039978,2733.8,2732.1,12.92187889]
[1769739184846,0.766,2732.8,2732.3,12.91987889]
[1769739186188,0.36690579,2733.6,2732.3,12.91987889]
[1769739186363,0.91434423,2734.2,2732.3,12.91987889]
[1769739186549,1.68134423,2734.2,2732.5,12.91987889]
[1769739186750,1.68134423,2734.2,2732.4,0.91494656]
[1769739186751,2.28792525,2734.2,2732.7,12.91987889]
[1769739186952,1.52092525,2734.2,2732.7,12.91987889]
[1769739187152,0.767,2734.1,2732.7,12.91987889]
[1769739187372,0.77810411,2734.1,2732.7,12.91987889]
[1769739187556,0.22990294,2734.0,2732.8,0.69683021]
[1769739187760,0.01110411,2733.9,2732.3,13.83684647]
[1769739188082,0.01110411,2733.7,2732.3,13.83684647]
[1769739188684,0.01110411,2733.5,2732.3,13.83684647]
[1769739188983,0.01110411,2733.3,2732.3,0.002]
[1769739189183,0.01110411,2732.9,2732.3,0.002]
[1769739189384,0.767,2732.8,2732.3,0.002]
[1769739191771,1.68181747,2732.8,2732.3,0.002]
[1769739191974,1.68182588,2732.8,2732.1,0.002]
[1769739192300,0.767,2732.8,2732.1,0.002]
[1769739192505,2.21700696,2732.8,2732.1,0.002]
[1769739192867,2.21700164,2732.8,2732.1,0.002]
[1769739193073,0.01110411,2732.7,2732.0,0.002]
[1769739193603,0.767,2732.6,2732.0,0.002]
[1769739194172,2.6273174,2734.0,2732.2,12.91987889]
[1769739194420,0.91414363,2734.8,2732.7,12.91987889]
[1769739194604,0.767,2734.7,2732.9,12.91987889]
[1769739194804,1.38458634,2734.7,2733.1,12.91987889]
[1769739194974,0.01110411,2734.5,2733.3,12.91987889]
[1769739196094,2.25,2734.4,2733.3,12.91987889]
[1769739196272,0.01110411,2734.2,2733.3,12.91987889]
[1769739196601,0.225,2734.3,2733.3,12.91987889]
[1769739197281,0.91434423,2734.2,2733.0,4.19887505]
[1769739197481,0.767,2734.1,2733.3,13.83452189]
[1769739197676,0.767,2734.1,2733.3,12.91987889]
[1769739198197,1.30198253,2734.1,2733.0,1.45464505]
[1769739198399,1.30198253,2734.1,2733.1,0.91469364]
[1769739198597,1.30198253,2734.1,2733.2,0.91467856]
[1769739198906,1.30198253,2734.1,2733.0,14.3745077]
[1769739199313,0.91441111,2734.0,2733.1,0.91470515]
[1769739199676,1.50181016,2734.0,2733.0,12.91987889]
[1769739199886,0.01110411,2733.8,2732.5,0.91489096]
[1769739200215,2.25,2733.7,2732.9,0.002]
[1769739201129,0.01110411,2733.8,2732.9,0.002]
[1769739201282,2.25,2733.6,2732.9,0.002]
[1769739201931,0.92558212,2733.8,2732.9,0.002]
[1769739202122,0.767,2733.7,2733.0,12.91987889]
[1769739202414,0.767,2733.6,2733.1,14.21206678]
[1769739203315,1.68155162,2733.6,2732.9,0.002]
[1769739203499,0.767,2733.6,2732.9,0.91675894]
[1769739203685,0.767,2733.6,2732.9,12.92187889]
[1769739203879,1.68154551,2733.6,2732.9,12.92187889]
[1769739204101,0.767,2733.5,2732.9,12.92187889]
[1769739204706,0.767,2733.5,2732.9,13.83665413]
[1769739204989,0.91453032,2733.7,2732.9,13.83665413]
[1769739205194,0.767,2733.6,2733.1,13.83459097]
[1769739205625,0.001,2734.0,2733.1,13.83459097]
[1769739206008,1.483,2734.4,2733.2,13.0482687]
[1769739206212,0.01110411,2735.0,2733.2,13.0482687]
[1769739206213,1.483,2735.3,2733.3,13.0482687]
[1769739206422,0.01110411,2735.0,2733.4,14.67116708]
[1769739206792,0.77810411,2735.2,2733.4,14.67116708]
[1769739206793,1.49410411,2735.2,2733.4,14.67116708]
[1769739206996,0.767,2735.1,2733.4,14.67116708]
[1769739207198,1.68107531,2735.1,2733.6,13.0482687]
[1769739207632,0.91403393,2735.2,2733.6,13.0482687]
[1769739207830,0.767,2735.1,2733.8,13.0482687]
[1769739209726,0.767,2735.0,2734.0,13.0482687]
[1769739210592,0.91393009,2735.5,2734.0,13.0482687]
[1769739210795,0.766,2735.4,2734.2,13.0482687]
[1769739211720,0.91397652,2735.3,2734.3,13.96257949]
[1769739212617,0.001,2734.9,2734.3,13.96257949]
[1769739212928,0.01110411,2735.8,2734.5,13.0482687]
[1769739213128,0.19065986,2736.6,2734.5,13.0482687]
[1769739213129,5.14847698,2736.5,2734.5,13.0482687]
[1769739213331,0.766,2735.7,2734.5,13.0482687]
[1769739213507,3.66547698,2736.5,2734.7,13.0482687]
[1769739213832,0.766,2736.4,2734.7,13.0482687]
[1769739214229,1.67962927,2736.4,2734.9,13.0482687]
[1769739214461,1.2351395,2736.7,2734.9,13.0482687]
[1769739214601,1.2351395,2736.7,2735.1,13.0482687]
[1769739214796,0.766,2736.6,2735.3,13.0482687]
[1769739215007,0.766,2736.6,2735.5,13.0022521]
[1769739215303,0.77710411,2736.6,2735.5,13.0022521]
[1769739216528,0.91357573,2736.5,2735.2,1.30593728]
[1769739216734,0.91357573,2736.5,2735.4,0.91394309]
[1769739216929,0.91357573,2736.5,2735.3,0.91396494]
[1769739217150,0.91357573,2736.5,2735.2,13.91623815]
[1769739217314,0.91357573,2736.5,2735.3,0.91394576]
[1769739217515,0.766,2736.4,2735.5,0.91390712]
[1769739217833,0.53449828,2736.4,2735.5,13.91615762]
[1769739218042,0.766,2736.3,2735.5,13.91615762]
[1769739218721,0.91354235,2736.6,2735.5,13.91615762]
[1769739218920,0.766,2736.5,2735.7,13.0022521]
[1769739219123,0.32162151,2736.7,2735.7,13.0022521]
[1769739219320,0.001,2737.2,2735.8,13.0022521]
[1769739219534,0.766,2737.1,2735.8,13.0022521]
[1769739220550,0.91316037,2737.8,2735.8,13.0022521]
[1769739220853,1.42768709,2737.9,2736.2,13.0022521]
[1769739221060,0.91294186,2738.4,2736.6,13.0022521]
[1769739221266,0.766,2738.3,2736.6,13.0022521]
[1769739221738,0.766,2738.3,2736.7,14.5]
[1769739221739,0.77710411,2738.3,2736.7,14.5]
[1769739221940,0.01110411,2737.8,2736.2,13.0022521]
[1769739222123,0.01110411,2737.6,2736.2,14.75933196]
[1769739222318,0.01110411,2737.6,2736.3,14.5]
[1769739222641,0.766,2737.5,2736.4,13.0022521]
[1769739222823,1.679248,2737.5,2736.6,13.0022521]
[1769739223023,2.21246815,2737.5,2736.6,13.0022521]
[1769739224439,2.21346815,2737.5,2736.6,13.0022521]
[1769739225859,2.21346815,2737.5,2735.2,0.24467441]
[1769739225860,0.01110411,2737.2,2735.7,0.91381067]
[1769739226027,0.01110411,2737.2,2735.5,13.0022521]
[1769739226028,0.01110411,2737.0,2735.5,13.0022521]
[1769739226228,0.01110411,2737.0,2735.8,13.91603802]
[1769739226653,0.01110411,2737.4,2736.0,13.91597318]
[1769739226860,0.01110411,2737.4,2736.1,13.91595766]
[1769739227163,0.766,2737.3,2736.1,13.0022521]
[1769739227349,0.01110411,2737.2,2736.2,1.30022521]
[1769739227723,0.01110411,2737.2,2736.1,13.0022521]
[1769739227930,0.01110411,2737.0,2735.6,13.0022521]
[1769739228125,0.01110411,2737.0,2734.9,14.5]
[1769739228126,0.01110411,2737.0,2735.1,3.65613065]
[1769739228333,0.766,2736.9,2736.1,13.0022521]
[1769739228764,3.6539778,2737.5,2736.3,13.0022521]
[1769739228929,0.766,2737.4,2736.3,13.0022521]
[1769739229130,3.6539778,2737.5,2736.3,13.0022521]
[1769739229131,0.914242,2737.5,2736.3,13.0022521]
[1769739229362,0.766,2737.4,2736.3,13.0022521]
[1769739229527,1.29930974,2737.4,2736.3,13.0022521]
[1769739230778,1.44659548,2737.4,2736.5,13.0022521]
[1769739230981,0.766,2737.3,2736.5,13.0022521]
[1769739231274,0.766,2737.2,2736.6,13.0022521]
[1769739232105,0.001,2737.5,2736.6,13.0022521]
[1769739232272,0.766,2737.4,2736.8,13.0022521]
[1769739232466,0.766,2737.3,2736.8,13.0022521]
[1769739232633,0.001,2737.5,2736.8,13.0022521]
[1769739232634,0.766,2737.2,2736.8,13.0022521]
[1769739232968,0.766,2737.1,2737.0,13.91566094]
[1769739233167,0.001,2737.5,2737.0,13.91566094]
[1769739233386,0.001,2737.5,2736.5,3.65422924]
[1769739233387,0.764,2737.3,2736.8,0.91346916]
[1769739233667,0.764,2737.3,2736.6,3.65416552]
[1769739233668,0.764,2737.3,2736.7,0.91348579]
[1769739233873,0.762,2737.3,2736.7,0.91348579]
[1769739234033,0.762,2737.3,2736.6,0.91353813]
[1769739234237,0.76,2737.3,2736.7,1.39157902]
[1769739234433,0.76,2737.3,2736.1,0.91368001]
[1769739234644,0.76,2737.3,2735.9,13.0022521]
[1769739234645,0.758,2737.3,2736.0,0.91373292]
[1769739234867,0.9133421,2737.2,2736.0,3.65495441]
[1769739235049,0.9113421,2737.2,2736.0,3.65495441]
[1769739235251,1.44361315,2737.2,2736.1,1.75709492]
[1769739235466,1.44161315,2737.2,2736.1,1.75709492]
[1769739235769,0.764,2737.1,2736.1,15.67455637]
[1769739235970,0.766,2737.0,2736.1,15.67455637]
[1769739236183,0.764,2737.0,2736.8,0.002]
[1769739236548,0.762,2737.0,2736.8,0.002]
[1769739237093,0.76,2737.0,2736.8,0.002]
[1769739237279,0.766,2736.9,2736.8,0.002]
[1769739238381,0.91432955,2737.3,2736.8,0.002]
[1769739238588,3.66333798,2738.1,2736.8,0.002]
[1769739238589,0.19061529,2739.5,2737.3,13.91746145]
[1769739238752,0.19061529,2739.5,2737.0,0.01110411]
[1769739238753,0.766,2738.7,2737.6,13.91746145]
[1769739238953,0.766,2738.7,2737.8,13.91746145]
[1769739239369,1.67885267,2738.7,2737.8,13.91746145]
[1769739239568,1.67885267,2738.7,2737.7,0.91317529]
[1769739239781,1.29899537,2738.7,2737.7,1.36976294]
[1769739240152,0.766,2738.7,2737.7,1.36976294]
[1769739240448,1.67884246,2738.7,2736.9,0.19016697]
[1769739240648,1.67884246,2738.7,2737.5,0.91323915]
[1769739240850,3.65061627,2739.3,2737.6,14.83064467]
[1769739241046,0.766,2738.6,2737.7,15.76580938]
[1769739241251,0.766,2738.6,2737.4,3.65308435]
[1769739241252,0.766,2738.6,2736.9,0.19016697]
[1769739241453,9.75255434,2738.2,2736.9,0.19016697]
[1769739241962,0.01110411,2738.0,2736.9,0.09839849]
[1769739242172,0.766,2737.9,2736.9,0.09839849]
[1769739242782,0.766,2737.8,2736.9,0.09839849]
[1769739242989,1.67917076,2737.8,2736.9,1.0118155]
[1769739243152,0.766,2737.8,2736.9,1.0118155]
[1769739243348,0.766,2737.8,2737.0,0.46676893]
[1769739243554,1.6791432,2737.8,2737.0,0.46676893]
[1769739243752,1.02631263,2738.9,2736.9,14.92929436]
[1769739243959,0.1024,2738.7,2736.9,14.83089587]
[1769739244553,0.1024,2738.7,2736.8,3.65588419]
[1769739244554,9.66170354,2738.4,2736.8,0.002]
[1769739244776,0.01110411,2738.0,2736.8,0.002]
[1769739245085,0.91310858,2737.9,2736.8,0.002]
[1769739245287,1.67810858,2737.9,2736.8,0.002]
[1769739247864,11.32672801,2737.9,2736.5,0.002]
[1769739248060,1.49902665,2737.8,2736.5,0.002]
[1769739249092,1.67810858,2737.9,2736.5,0.002]
[1769739249505,11.32672801,2737.9,2736.4,2.63530092]
[1769739249801,11.32672801,2737.9,2735.4,0.91392995]
[1769739249802,0.01110411,2736.8,2735.4,0.91392995]
[1769739250086,0.765,2736.7,2735.5,0.91390199]
[1769739250387,0.765,2736.7,2735.2,0.91397952]
[1769739250592,0.765,2736.7,2735.4,0.91393009]
[1769739250796,0.765,2736.7,2734.3,14.8317388]
[1769739250797,9.64861943,2736.4,2734.3,14.8317388]
[1769739250983,9.64861943,2736.4,2734.2,1.82669327]
[1769739250984,0.01110411,2735.7,2734.2,1.82669327]
[1769739251185,0.9139097,2735.5,2734.2,0.9123492]
[1769739251492,0.9139097,2735.5,2734.2,1.82668908]
[1769739251666,1.81403477,2735.5,2734.2,0.9123492]
[1769739251867,1.81403477,2735.5,2734.2,1.82667669]
[1769739252464,1.81403477,2735.5,2733.3,13.91746145]
[1769739252465,9.65972354,2735.3,2733.3,13.91746145]
[1769739252664,0.97621235,2735.2,2733.5,0.91455497]
[1769739252904,0.01110411,2735.1,2733.4,2.30633551]
[1769739253264,0.91407678,2735.0,2733.4,2.30633551]
[1769739253676,0.91407678,2735.0,2733.4,2.30635343]
[1769739253879,0.01110411,2734.8,2733.5,1.98823843]
[1769739254396,0.01110411,2734.8,2733.3,0.91464221]
[1769739254613,0.01110411,2734.8,2733.3,0.91464011]
[1769739254799,0.4581488,2734.9,2733.4,14.8320459]
[1769739254975,0.766,2734.8,2733.4,14.8320459]
[1769739255187,0.91417705,2734.7,2733.5,2.76361095]
[1769739255516,0.91417705,2734.7,2733.4,13.91746145]
[1769739255517,0.91417705,2734.7,2732.0,0.002]
[1769739255518,0.01110411,2733.2,2732.0,0.002]
[1769739255667,1.43100667,2732.8,2732.0,0.002]
[1769739255866,2.19700667,2733.1,2731.6,0.002]
[1769739255867,0.01110411,2732.4,2731.6,0.002]
[1769739256403,0.766,2732.3,2731.6,0.91719889]
[1769739256701,0.766,2732.3,2731.6,17.58030665]
[1769739256882,0.766,2732.3,2731.8,0.91512584]
[1769739257069,0.766,2732.3,2731.7,0.91517811]
[1769739257270,0.72386713,2732.3,2731.7,0.91517811]
[1769739257471,0.91471223,2733.1,2731.8,1.48346396]
[1769739257672,0.766,2733.0,2731.8,15.40092541]
[1769739258106,0.01110411,2732.9,2731.8,1.48346396]
[1769739258289,0.766,2732.8,2731.6,14.83467333]
[1769739259012,10.55343166,2733.1,2731.6,0.002]
[1769739259211,0.01110411,2732.1,2731.0,0.002]
[1769739259380,0.01110411,2731.7,2730.3,0.91563664]
[1769739259575,0.766,2731.6,2730.3,0.91563664]
[1769739259908,0.766,2731.6,2730.4,14.3754965]
[1769739260273,0.01110411,2732.1,2730.4,14.3754965]
[1769739260505,0.766,2731.5,2730.4,14.3754965]
[1769739260875,0.766,2731.5,2730.4,0.45803505]
[1769739261080,0.766,2731.5,2730.2,0.002]
[1769739261295,1.68128154,2731.4,2730.2,13.91946145]
[1769739261516,1.68128154,2731.4,2730.2,0.002]
[1769739262235,0.91514752,2731.8,2730.2,13.91946145]
[1769739262381,0.766,2731.3,2730.3,15.3094076]
[1769739262732,0.766,2731.3,2730.5,0.002]
[1769739263326,0.91534856,2731.2,2730.5,0.002]
[1769739263475,0.91534856,2731.2,2730.2,0.002]
[1769739263676,0.766,2731.1,2730.2,13.91946145]
[1769739263911,0.766,2731.1,2730.3,1.38994615]
[1769739264114,0.766,2731.1,2730.2,0.002]
[1769739264280,0.766,2731.0,2730.0,13.91946145]
[1769739264680,0.766,2731.0,2730.0,13.91746145]
[1769739265204,0.766,2731.0,2730.1,0.91571737]
[1769739265376,0.766,2731.0,2730.1,0.91371737]
[1769739265576,0.766,2731.0,2730.1,1.37138389]
[1769739265812,0.01110411,2731.6,2730.1,14.22294436]
[1769739266029,0.01110411,2732.7,2730.3,12.85356047]
[1769739266030,0.91501354,2732.2,2730.3,12.85356047]
[1769739266325,0.767,2731.8,2730.5,12.85156047]
[1769739266753,1.42584907,2732.2,2730.5,12.84956047]
[1769739266754,0.51083553,2732.2,2730.5,12.84956047]
[1769739266901,0.53328763,2732.3,2730.7,12.85356047]
[1769739266902,0.767,2732.1,2730.7,12.85356047]
[1769739267104,0.53328763,2732.3,2730.4,0.01110411]
[1769739267105,0.53328763,2732.3,2730.9,12.85356047]
[1769739267346,0.53328763,2732.3,2731.3,12.85356047]
[1769739267808,3.65733545,2734.3,2731.7,12.85356047]
[1769739268154,3.65733545,2734.3,2731.6,0.01110411]
[1769739268155,0.77810411,2734.2,2731.9,12.85356047]
[1769739268310,0.767,2734.1,2732.3,12.85356047]
[1769739268502,0.767,2734.1,2732.0,0.01110411]
[1769739268503,0.767,2734.1,2732.5,12.85356047]
[1769739268820,0.767,2734.1,2732.4,0.5528073]
[1769739269027,0.767,2734.1,2731.9,12.85356047]
[1769739269222,0.767,2734.1,2731.5,0.91524803]
[1769739269223,0.91454492,2733.6,2731.5,0.91524803]
[1769739269429,0.01110411,2733.5,2731.5,0.91524803]
[1769739270331,0.01110411,2733.5,2731.3,3.66099212]
[1769739270332,0.01110411,2732.9,2731.3,0.91529917]
[1769739270551,0.767,2732.8,2731.4,0.9152772]
[1769739270851,0.01110411,2733.3,2731.4,13.76883767]
[1769739271018,0.767,2732.7,2731.4,13.76883767]
[1769739271340,0.91465728,2733.3,2731.7,12.85356047]
[1769739271548,1.68165728,2733.3,2731.8,0.599474]
[1769739271917,1.68165728,2733.3,2731.8,13.45303447]
[1769739272301,1.68164539,2733.3,2731.8,13.45303447]
[1769739272829,1.6927495,2733.3,2731.8,0.599474]
[1769739273072,0.01110411,2732.3,2730.1,3.66277298]
[1769739273332,0.91518102,2731.7,2730.6,1.79328569]
[1769739273538,0.767,2731.6,2730.6,1.79328569]
[1769739274335,0.768,2731.6,2730.6,1.79328569]
[1769739275039,0.768,2731.6,2730.6,0.87774003]
[1769739275253,0.77910411,2731.6,2729.9,3.66311707]
[1769739275465,0.01110411,2731.3,2730.0,0.36651171]
[1769739275744,0.767,2731.2,2729.5,3.66362278]
[1769739276248,0.767,2731.2,2729.8,13.67511297]
[1769739276740,0.767,2731.2,2729.8,0.002]
[1769739276943,0.91524803,2731.5,2729.8,13.67511297]
[1769739277173,0.001,2731.6,2730.0,13.67311297]
[1769739277174,0.9162284,2731.6,2730.0,13.67311297]
[1769739277362,0.001,2731.6,2730.1,0.91571737]
[1769739278151,0.01110411,2731.3,2729.9,1.3675113]
[1769739278457,0.01110411,2731.3,2729.9,0.91578152]
[1769739278660,0.001,2731.6,2730.0,14.58885301]
[1769739279329,0.001,2731.6,2730.2,13.67311297]
[1769739279768,0.001,2731.6,2730.2,13.68421708]
[1769739279918,15.70834967,2733.6,2730.2,13.68421708]
[1769739279919,0.767,2732.7,2730.8,13.67311297]
[1769739280119,0.01110411,2732.6,2730.8,13.67311297]
[1769739280436,0.01110411,2732.2,2730.3,15.04153468]
[1769739280749,0.01110411,2732.4,2730.5,13.67311297]
[1769739280915,0.01110411,2732.4,2730.4,14.5]
[1769739280916,0.01110411,2732.8,2730.7,13.67311297]
[1769739281651,0.91466099,2733.3,2731.1,13.67311297]
[1769739281836,0.91462798,2733.4,2731.3,13.67311297]
[1769739282191,0.01110411,2733.8,2731.5,13.67311297]
[1769739282192,0.92560398,2733.8,2731.5,13.67311297]
[1769739282365,3.65778227,2733.9,2731.5,13.67311297]
[1769739282366,0.914474,2733.9,2731.5,13.67311297]
[1769739282550,0.914474,2733.9,2731.7,13.67311297]
[1769739282760,0.914474,2733.9,2731.7,13.68421708]
[1769739283072,1.44950292,2733.9,2731.9,13.67311297]
[1769739283218,0.01110411,2734.2,2732.1,13.67311297]
[1769739283420,0.01110411,2734.3,2732.5,13.67311297]
[1769739283618,0.01110411,2734.3,2732.7,13.67311297]
[1769739283842,0.92536334,2734.5,2732.7,13.67311297]
[1769739284047,0.01110411,2734.5,2732.8,15.04153468]
[1769739284245,1.22227943,2734.6,2732.8,13.67311297]
[1769739284443,1.22227943,2734.6,2733.0,13.67311297]
[1769739284829,0.01110411,2734.3,2733.0,13.67311297]
[1769739285045,0.01110411,2734.3,2732.6,0.9148796]
[1769739285245,0.01110411,2734.3,2732.7,14.9574398]
[1769739285446,0.01110411,2734.5,2732.7,14.9574398]
[1769739285649,0.91427735,2734.4,2732.9,0.91477917]
[1769739286426,0.92536549,2734.5,2732.9,0.91477917]
[1769739286853,0.001,2734.3,2732.9,0.91477917]
[1769739287061,0.001,2734.3,2733.0,1.76763529]
[1769739287260,0.001,2734.3,2732.8,0.91480798]
[1769739287261,0.01110411,2734.2,2732.8,0.91480798]
[1769739287491,13.90417668,2733.9,2731.0,13.68421708]
[1769739287669,0.01110411,2732.8,2731.2,13.67311297]
[1769739287871,0.01110411,2732.3,2731.3,1.45884951]
[1769739288027,0.01110411,2732.3,2731.0,0.91540307]
[1769739288340,0.01110411,2732.3,2730.9,1.68333896]
[1769739288927,0.01110411,2732.1,2730.9,1.68333896]
[1769739289542,0.91508052,2732.0,2730.9,2.59878425]
[1769739289833,0.91508052,2732.0,2731.0,0.25987843]
[1769739290039,0.91508052,2732.0,2730.9,1.68333896]
[1769739290227,0.91508052,2732.0,2730.9,2.59876803]
[1769739290424,0.91508052,2732.0,2730.9,1.68333896]
[1769739291158,0.77810411,2731.9,2730.2,0.9176612]
[1769739291348,0.01110411,2731.7,2730.2,0.002]
[1769739291548,0.91521452,2731.6,2730.3,1.28211492]
[1769739292265,0.91521452,2731.6,2730.3,14.95522789]
[1769739292462,0.91519889,2731.7,2730.3,14.95522789]
[1769739293566,0.91508052,2732.0,2730.3,14.95522789]
[1769739293878,0.91508052,2732.0,2730.4,15.53170263]
[1769739294089,3.65917424,2732.9,2730.6,13.67311297]
[1769739294235,0.91484612,2732.7,2730.8,13.67311297]
[1769739295172,0.91477917,2732.9,2731.1,13.67311297]
[1769739295338,1.37327885,2732.9,2731.3,13.67311297]
[1769739295539,1.37327885,2732.9,2731.4,13.89771436]
[1769739296057,0.01110411,2732.7,2731.3,14.5]
[1769739296257,0.01110411,2732.7,2731.3,0.91531489]
[1769739296461,0.01110411,2732.7,2731.2,1.28181177]
[1769739296637,0.01110411,2732.4,2731.2,0.36648543]
[1769739296837,0.01110411,2732.4,2730.8,14.5]
[1769739296838,0.01110411,2732.4,2730.8,0.91547785]
[1769739297061,0.01110411,2732.4,2731.0,0.91541304]
[1769739297470,0.01110411,2732.4,2730.9,0.91542912]
[1769739297681,0.01110411,2732.4,2730.2,0.91767417]
[1769739297682,13.65939276,2731.6,2730.2,0.91767417]
[1769739297980,0.01110411,2731.0,2729.8,0.002]
[1769739298146,0.01110411,2731.2,2729.8,0.002]
[1769739298345,0.767,2731.0,2729.8,0.002]
[1769739298666,0.767,2731.2,2729.8,0.002]
[1769739298972,0.767,2731.1,2729.8,0.00100203]
[1769739299343,0.81325131,2731.2,2728.9,13.9005271]
[1769739299344,0.01110411,2730.6,2728.9,13.9005271]
[1769739299543,0.767,2730.7,2729.0,1.39005271]
[1769739299840,0.91554969,2730.6,2729.2,0.002]
[1769739300284,0.91524803,2731.5,2729.5,12.98243282]
[1769739300574,0.91524803,2731.5,2729.7,12.98243282]
[1769739301091,0.91514752,2731.8,2730.1,12.98243282]
[1769739301390,0.91514752,2731.8,2729.5,0.01110411]
[1769739301391,0.45849968,2732.9,2730.6,12.98243282]
[1769739301543,0.91594251,2732.5,2730.7,14.28178651]
[1769739301743,0.001,2732.5,2730.9,12.98243282]
[1769739301968,0.001,2732.5,2730.9,27.48243282]
[1769739302481,0.01110411,2732.2,2730.7,1.29935369]
[1769739302651,0.01110411,2731.5,2729.7,0.91583046]
[1769739302841,0.01110411,2731.5,2729.3,3.66389147]
[1769739303047,0.01110411,2731.5,2729.9,0.9157813]
[1769739303241,0.01110411,2731.5,2730.0,0.91574693]
[1769739303498,0.01110411,2731.5,2730.0,0.91574489]
[1769739303675,0.91538208,2731.1,2729.3,12.98243282]
[1769739303977,0.91538208,2731.1,2729.4,0.91595222]
[1769739304177,0.45880145,2731.0,2729.5,1.75621939]
[1769739304373,0.46990556,2731.0,2729.5,1.75621939]
[1769739304561,0.46990556,2731.0,2729.4,0.91595222]
[1769739304562,0.01110411,2730.9,2729.4,0.91595222]
[1769739304873,0.45880145,2731.0,2729.4,0.91595222]
[1769739305465,0.01110411,2732.0,2729.8,12.98243282]
[1769739305649,0.11350411,2732.0,2729.8,12.98243282]
[1769739305853,0.1024,2731.8,2729.9,13.89821728]
[1769739306157,0.91511402,2731.9,2730.1,12.98243282]
[1769739306459,0.45866742,2731.9,2730.3,12.98243282]